Cogmind - Beta 16 @@@ ROGUE MODE // 2026.01.08 @ 02:12:50 Player: Yellow Fin Result: Escaped! Performance ------------- Evolutions (9) 4500 Regions Visited (19) 3800 Robots Destroyed (208) 1040 Value Destroyed (4972) 4972 Prototype IDs (20) 400 Alien Tech Used (0) 0 Bonus (5324) 5324 TOTAL SCORE: 20036 Bonus ------- High Alert Combat Kills 136 Follower Combat Kills 1388 Registered with UFD 300 Met Optimus in HQ 500 Win 3000 Cogmind --------- Core Integrity 1465/1600 Matter 232/300 Energy 156/190 System Corruption 0% Temperature Cool (-107) Movement Flying (17) Location To Epsilon Eridani Parts ------- > --- POWER (1) -------- Light Quantum Reactor > --- PROPULSION (7) --- Xenon Bombardment Thruster Cooled Nuclear Pulse Thruster Nuclear Pulse Array Advanced Surge Thruster Impulse Thruster Array > --- UTILITY (15) ----- Advanced Cryofiber Web Structural Scanner Advanced Sensor Array Advanced Signal Interpreter Advanced Reaction Control System Layered Medium Armor Plating Hacking Suite Hacking Suite Hacking Suite Hacking Suite Improved Hacking Suite Advanced Hacking Suite Advanced System Shield Advanced System Shield Advanced System Shield > --- WEAPON (2) ------- Enhanced Nova Cannon Power Sword > --- INVENTORY (5) ---- Quantum Reactor Energy Well (350) Medium Reflective Plating Peak State ------------ > --- POWER ------------ Light Quantum Reactor > --- PROPULSION ------- Cooled Nuclear Pulse Thruster Cooled Nuclear Pulse Thruster Cooled Nuclear Pulse Thruster Advanced Surge Thruster Advanced Surge Thruster Field Propulsion Array > --- UTILITY ---------- Advanced Cryofiber Web Medium Storage Unit Advanced Sensor Array Advanced Signal Interpreter Advanced Reaction Control System Advanced Phase Shifter Hacking Suite Improved Hacking Suite Advanced Hacking Suite Advanced System Shield Advanced System Shield Advanced System Restoration Module Advanced System Restoration Module > --- WEAPON ----------- Mini Smartbomb Launcher Katana > --- INVENTORY -------- Light Quantum Reactor Compact Matter Pod Advanced ECM Suite Hacking Suite Hacking Suite Advanced System Shield [Rating: 142] Favorites ----------- Power Heavy Ion Engine Engine Heavy Ion Engine Power Core Light Fission Core Reactor Light Quantum Reactor Propulsion Wheel Wheel Wheel Flight Unit Cooled Nuclear Pulse Thruster Utility Hacking Suite Device Structural Scanner Storage Large Storage Unit Processor Improved Targeting Computer Hackware Hacking Suite Protection Reactive Plating Weapon Katana Energy Gun Medium Laser Energy Cannon Advanced Beam Cannon Ballistic Gun Autogun Ballistic Cannon Assault Cannon Launcher Mini Grenade Launcher Impact Weapon Mace Slashing Weapon Katana Build | -11 -10 -10 -9 -9 -8 -8 -8 -8 -6 -5 -5 -5 -4 -4 -4 -3 -2 -2 -1 ------- Run | Yrd Mat Min Mat Min Mat Sto Rec Scr Fac Fac Was Fac Fac Was Fac Res Res Tes Acc Slots Evolved 18 | . . . 2 . 2 . . . 4 2 . . 2 . . 2 2 . 2 Power . | . . . . . . . . . . . . . . . . . . . . Propulsion 5 | . . . . . . . . . 3 2 . . . . . . . . . Utility 13 | . . . 2 . 2 . . . 1 . . . 2 . . 2 2 . 2 Weapon . | . . . . . . . . . . . . . . . . . . . . Parts Attached 205 | 8 19 6 31 4 25 19 4 7 17 10 . 7 2 1 12 3 11 4 15 Power 29 | 2 2 3 5 . 4 2 . 1 1 1 . 1 . . 2 . 1 1 3 Engine 14 | 2 2 2 5 . 1 2 . . . . . . . . . . . . . Core 8 | . . 1 . . 3 . . 1 1 . . 1 . . . . . . 1 Reactor 7 | . . . . . . . . . . 1 . . . . 2 . 1 1 2 Propulsion 55 | 2 6 . 11 3 6 4 . 2 5 6 . 1 . . 3 . 1 1 4 Treads . | . . . . . . . . . . . . . . . . . . . . Leg . | . . . . . . . . . . . . . . . . . . . . Wheel 32 | 2 6 . 10 3 5 4 . 2 . . . . . . . . . . . Hover . | . . . . . . . . . . . . . . . . . . . . Flight 23 | . . . 1 . 1 . . . 5 6 . 1 . . 3 . 1 1 4 Utility 86 | 2 5 2 9 . 11 4 2 4 11 2 . 5 2 1 6 3 9 1 7 Device 28 | 1 1 . . . 4 1 1 1 3 1 . 3 . . 2 1 7 . 2 Storage 8 | 1 2 . 1 . 2 . . . 1 . . . . . . . 1 . . Processor 10 | . . . 4 . 2 . . . 2 . . . . 1 1 . . . . Hackware 23 | . . . . . . . . 3 5 1 . 2 2 . 3 2 1 1 3 Protection 17 | . 2 2 4 . 3 3 1 . . . . . . . . . . . 2 Artifact . | . . . . . . . . . . . . . . . . . . . . Weapon 35 | 2 6 1 6 1 4 9 2 . . 1 . . . . 1 . . 1 1 Energy Gun 6 | 2 . 1 1 . . 2 . . . . . . . . . . . . . Energy Cannon 4 | . . . 2 . . 1 . . . . . . . . . . . . 1 Ballistic Gun 11 | . 5 . 3 1 . 2 . . . . . . . . . . . . . Ballistic Cannon 7 | . . . . . 4 3 . . . . . . . . . . . . . Launcher 3 | . . . . . . 1 1 . . . . . . . 1 . . . . Special Weapon . | . . . . . . . . . . . . . . . . . . . . Impact Weapon 1 | . 1 . . . . . . . . . . . . . . . . . . Slashing Weapon 3 | . . . . . . . 1 . . 1 . . . . . . . 1 . Piercing Weapon . | . . . . . . . . . . . . . . . . . . . . Special Melee Weapon . | . . . . . . . . . . . . . . . . . . . . Unidentified Prototypes 13 | . . . 2 . 2 6 . . . 2 . 1 . . . . . . . Corrupted Parts 5 | . . . . . . . . 3 . 1 . 1 . . . . . . . System Corruption 16 | . . . . . . . . 11 . 4 . 1 . . . . . . . Parts Lost 26 | . 1 2 . . 2 6 . . . . . . 2 . 2 . 3 2 6 Power 4 | . . 1 . . 1 1 . . . . . . . . . . . . 1 Propulsion 9 | . . . . . 1 2 . . . . . . 1 . . . . 1 4 Utility 10 | . 1 1 . . . 1 . . . . . . 1 . 2 . 3 . 1 Weapon 3 | . . . . . . 2 . . . . . . . . . . . 1 . Highest Loss Streak 6 | . 1 2 . . 1 6 . . . . . . 2 . 1 . 3 4 6 To Critical Strikes . | . . . . . . . . . . . . . . . . . . . . Average Backups 16 | 2 9 14 18 19 18 23 24 24 13 13 15 14 14 14 11 11 9 6 1 Power . | . . . . . . . . . . . . . . . 1 . . . . Propulsion 3 | . 1 5 5 5 5 4 5 5 1 . . . . . . . . . . Utility 10 | . 5 6 7 9 9 12 13 16 12 13 15 14 13 13 9 11 8 5 1 Weapon 2 | . 2 2 4 4 3 5 4 2 . . . . . . . . . . . Tool/Special . | . . . . . . . . . . . . . . . . . . . . Unused Backups 63 | 1 4 4 8 1 6 6 4 3 8 3 . 1 . 1 9 . 2 . 2 Power 2 | . 1 . . . . . . . . . . . . . 1 . . . . Propulsion 15 | . 1 3 6 . 4 . 1 . . . . . . . . . . . . Utility 31 | 1 . 1 1 1 1 2 . 1 8 2 . 1 . . 8 . 2 . 2 Weapon 14 | . 2 . 1 . 1 4 3 2 . 1 . . . . . . . . . Tool/Special 1 | . . . . . . . . . . . . . . 1 . . . . . Average Slot Usage (%) 98 | . 99 99 99 100 98 97 100 100 99 99 100 100 94 94 94 94 93 94 86 Engine 5 | . 14 9 9 11 3 8 9 7 . . . . . . . . . . . Core 2 | . . 3 1 . 4 . . 1 6 4 5 5 5 5 . . . . 1 Wheel 13 | . 28 28 22 22 17 17 18 18 . . . . . . . . . . . Flight 10 | . . . . . . . . . 32 40 41 41 33 31 31 28 25 26 20 Device 9 | . . . 3 . 7 15 9 18 13 11 11 10 7 5 8 13 20 21 15 Storage 8 | . 14 14 11 11 9 9 9 9 6 5 5 5 5 5 5 4 4 4 . Processor 10 | . . . 14 22 24 18 18 . 5 5 5 5 5 10 9 4 4 4 4 Hackware 10 | . . . . . . . . 26 20 17 17 17 25 26 23 27 24 24 35 Protection 7 | . 13 14 14 11 12 10 18 . . . . . . . . . . . 1 Energy Gun 1 | . 7 3 2 . . . . . . . . . . . . . . . . Energy Cannon 2 | . . . 7 11 . 5 . . . . . . . . . . . . 1 Ballistic Gun 4 | . 20 24 12 11 . . . . . . . . . . . . . . . Ballistic Cannon 4 | . . . . . 16 10 18 . . . . . . . . . . . . Launcher 2 | . . . . . . . . 9 5 5 5 5 5 5 4 4 4 4 . Slashing Weapon 2 | . . . . . . . . 9 6 5 5 5 5 5 5 4 4 4 4 Peak Build Rating 142 | 8 11 14 23 24 35 36 35 39 60 81 80 87 96 97 111 122 139 142 141 Average Rating 46 | 6 10 12 19 23 31 33 34 35 57 72 80 82 93 96 107 120 131 136 128 On Entrance 60 | . 7 11 14 22 23 33 35 32 35 60 80 80 87 91 97 111 120 139 131 Avg Prop Armor Cover (%) 2 | . . . . . . . . 7 2 2 2 2 2 . . . . . 17 Naked Turns . | . . . . . . . . . . . . . . . . . . . . Heaviest Build 123 | 15 38 38 71 64 115 123 123 92 89 32 32 33 33 32 44 44 50 45 50 Greatest Support 62 | 26 26 20 20 20 20 26 29 29 34 47 47 49 50 35 60 60 62 53 56 Greatest Overweight (x) 6 | 2 1 1 3 3 5 6 6 5 3 . . . . . . . 1 . 3 Average Overweight (x) 1 | . . 1 2 3 3 4 5 3 . . . . . . . . . . . Largest Inventory Capacity 25 | 8 15 15 20 20 25 25 25 25 25 15 15 15 15 15 15 15 15 10 10 Average Capacity 18 | 7 10 15 18 20 21 25 25 25 15 15 15 15 15 15 15 15 10 10 5 Most Carried 25 | 7 12 15 20 20 21 25 25 25 25 15 15 15 15 15 15 14 13 8 6 Average Carried 17 | 2 9 14 18 19 19 24 24 24 14 14 15 14 14 14 11 12 9 6 1 Final Capacity 25 | 8 15 15 20 20 25 25 25 25 15 15 15 15 15 15 15 15 10 10 5 Final Carried 25 | 7 12 15 20 20 21 25 25 25 14 15 15 15 15 15 15 13 7 7 3 Class Distribution -------------------- 56% | Mutant 10% | Scavenger-Mutant 10% | Hacker-Scout 9% | Wizard-Scout 8% | Hacker-Sprinter Dominant Class ---------------- Mutant | -10/Materials Mutant | -10/Mines Mutant | -9/Materials Mutant | -9/Mines Mutant | -8/Materials Mutant | -8/Storage Mutant | -8/Recycling Scavenger-Mutant | -8/Scraptown Hacker-Sprinter | -6/Factory Hacker-Scout | -5/Factory Hacker-Sprinter | -5/Waste Hacker-Scout | -5/Factory Wizard-Sprinter | -4/Factory Wizard-Scout | -4/Waste Hacker-Scout | -4/Factory Wizard-Scout | -3/Research Wizard-Scout | -2/Research Wizard-Sprinter | -2/Testing Wizard-Scout | -1/Access Resources | -11 -10 -10 -9 -9 -8 -8 -8 -8 -6 -5 -5 -5 -4 -4 -4 -3 -2 -2 -1 ----------- Run | Yrd Mat Min Mat Min Mat Sto Rec Scr Fac Fac Was Fac Fac Was Fac Res Res Tes Acc Matter Collected 6404 | 280 717 300 794 118 884 661 190 100 220 134 . 277 5 105 1170 . 131 11 307 Remotely . | . . . . . . . . . . . . . . . . . . . . Salvage Created 6513 | 184 711 211 1482 231 923 877 273 . 220 134 . 308 . . 638 . 85 . 236 Parts 426 | 14 43 14 117 21 57 64 9 . 9 4 . 16 . . 35 . 10 . 13 Haulers Intercepted 13 | . 2 . 5 . 3 3 . . . . . . . . . . . . . Recyclers Shooed 7 | . 1 . . . . 1 1 . 3 . . 1 . . . . . . . Parts Field Recycled . | . . . . . . . . . . . . . . . . . . . . Retrieved Matter . | . . . . . . . . . . . . . . . . . . . . Parts Self-Destructed . | . . . . . . . . . . . . . . . . . . . . Prevented . | . . . . . . . . . . . . . . . . . . . . Parts Restored . | . . . . . . . . . . . . . . . . . . . . Kills | -11 -10 -10 -9 -9 -8 -8 -8 -8 -6 -5 -5 -5 -4 -4 -4 -3 -2 -2 -1 ------- Run | Yrd Mat Min Mat Min Mat Sto Rec Scr Fac Fac Was Fac Fac Was Fac Res Res Tes Acc Combat Hostiles Destroyed 107 | . 10 10 27 8 18 16 4 . . . . . . . 8 . 4 . 2 Melee 2 | . . . . . . . . . . . . . . . . . . . 2 Guns 40 | . 10 10 16 3 1 . . . . . . . . . . . . . . Cannons 52 | . . . 10 5 17 16 4 . . . . . . . . . . . . AOE 12 | . . . . . . . . . . . . . . . 8 . 4 . . Classes Destroyed 14 | 3 6 . 2 . . . . . . . . . . . 2 . 1 . . Worker 28 | 1 3 . 7 1 6 3 . . 1 . . 3 . . 3 . . . . Builder 18 | . 2 . 1 1 1 5 . . . . . 1 . . 6 . . . 1 Tunneler 5 | 5 . . . . . . . . . . . . . . . . . . . Hauler 13 | . 2 . 5 . 3 3 . . . . . . . . . . . . . Recycler 15 | 1 1 . . . 1 2 2 . 2 1 . 2 . . 2 . . . 1 Operator 7 | . 2 . 3 . 1 . . . . . . . . . 1 . . . . Watcher 15 | . 2 . 5 . . 2 . . . . . . . . 6 . . . . Swarmer 28 | . 3 8 4 6 1 3 . . . . . . . . 3 . . . . Cutter 6 | . . . . . . . . . . . . . . . . . 4 . 2 Grunt 43 | . 7 2 14 . 11 8 . . . . . . . . 1 . . . . Duelist 1 | . . . 1 . . . . . . . . . . . . . . . . Sentry 25 | . . . 8 2 6 5 4 . . . . . . . . . . . . Hunter 2 | . . . . . . . . . . . . . . . 2 . . . . Programmer 2 | . . . . . . . . . . . . . . . 2 . . . . Best Kill Streak 9 | 6 5 3 5 3 3 9 3 . 2 1 . 3 . . 5 . 4 . 2 Combat Bots Only 5 | . 5 3 4 3 3 4 2 . . . . . . . 4 . 4 . 2 Max Kills in Single Turn 4 | 1 1 1 2 1 2 2 1 . 1 1 . 1 . . 4 . 2 . 1 Gunslinging . | . . . . . . . . . . . . . . . . . . . . Exploded 3 | . . . . . . . . . . . . . . . 3 . 2 . . Melee 1 | . . . . . . . . . . . . . . . . . . . 1 Uniques/NPCs Destroyed . | . . . . . . . . . . . . . . . . . . . . Combat | -11 -10 -10 -9 -9 -8 -8 -8 -8 -6 -5 -5 -5 -4 -4 -4 -3 -2 -2 -1 -------- Run | Yrd Mat Min Mat Min Mat Sto Rec Scr Fac Fac Was Fac Fac Was Fac Res Res Tes Acc Hostile Shots Fired 512 | . 66 48 67 24 87 81 12 . 10 4 . . 5 . 28 5 16 26 33 Missed 153 | . 12 13 10 7 21 17 1 . 6 1 . . 3 . 18 1 9 12 22 Hits 359 | . 54 35 57 17 66 64 11 . 4 3 . . 2 . 10 4 7 14 11 Melee 9 | . . . 3 . . . . . . . . . . . . . 1 . 5 Projectile 350 | . 54 35 54 17 66 64 11 . 4 3 . . 2 . 10 4 6 14 6 AOE 4 | . . . . . . . . . . . . . . . . . 3 . 1 Critical Strikes 20 | . 3 . 2 3 4 3 . . . . . . . . . . 2 . 3 Damage Taken 5510 | . 676 321 732 128 993 795 98 . 87 . . . 92 . 332 39 539 273 405 Core 867 | . 134 64 106 7 103 109 21 . 20 . . . . . 18 . 128 22 135 Absorbed by Shields 368 | . . . . . 88 236 44 . . . . . . . . . . . . Ignored by Resistances 105 | . . . 20 30 14 24 17 . . . . . . . . . . . . Regen/Repaired (Parts) 415 | . . . 127 . 32 83 . . 28 58 . . . . 64 . 23 . . Core Remaining (%) 82 | 100 . 20 . 71 . . . 57 97 . . 100 . . 98 100 . 89 91 Volleys Fired 410 | 13 71 26 87 17 66 73 9 . . . . 3 4 . 36 . 5 . . Largest 2 | 2 2 2 2 2 2 2 2 . . . . 1 1 . 1 . 1 . . Hottest 100 | 100 100 46 93 93 93 97 74 . . . . 30 30 . 80 . 80 . . Shots Fired 747 | 26 142 53 171 34 124 131 18 . . . . 3 4 . 36 . 5 . . Gun 359 | 26 142 53 113 17 6 2 . . . . . . . . . . . . . Cannon 340 | . . . 58 17 118 129 18 . . . . . . . . . . . . Launcher 48 | . . . . . . . . . . . . 3 4 . 36 . 5 . . Special . | . . . . . . . . . . . . . . . . . . . . Kinetic 520 | . 123 53 96 17 118 95 18 . . . . . . . . . . . . Thermal 179 | 26 19 . 75 17 6 36 . . . . . . . . . . . . . Explosive 48 | . . . . . . . . . . . . 3 4 . 36 . 5 . . Electromagnetic . | . . . . . . . . . . . . . . . . . . . . Robot Hit Streak 33 | 8 11 11 17 10 33 21 9 . . . . . . . 4 . 6 . . Robot Miss Streak 7 | 2 6 5 4 2 3 7 5 . . . . 2 . . . . . . . Penetration Max . | . . . . . . . . . . . . . . . . . . . . Secondary Targets 6 | . 2 4 . . . . . . . . . . . . . . . . . Max Gunslinging Chain 1 | . 1 1 . . . . . . . . . . . . . . . . . Shots Hit Robots 518 | 18 88 29 125 22 91 89 12 . 10 1 . 12 . . 13 . 2 . 6 Core Hits 310 | 8 28 11 82 11 42 46 16 . 4 1 . 6 . . 43 . 9 . 3 Critical Kills 1 | . . . 1 . . . . . . . . . . . . . . . . Critical Parts Destroyed 1 | . 1 . . . . . . . . . . . . . . . . . . Critical Strikes 13 | 1 2 . 1 . 4 3 . . 1 . . . . . 1 . . . . Burn 2 | 1 1 . . . . . . . . . . . . . . . . . . Meltdown 1 | . . . 1 . . . . . . . . . . . . . . . . Destroy 1 | . 1 . . . . . . . . . . . . . . . . . . Blast 7 | . . . . . 4 3 . . . . . . . . . . . . . Sever 2 | . . . . . . . . . 1 . . . . . 1 . . . . Melee Attacks 201 | . 5 . . . . . . . 36 42 . 35 2 . 32 11 10 6 22 Impact 5 | . 5 . . . . . . . . . . . . . . . . . . Slashing 196 | . . . . . . . . . 36 42 . 35 2 . 32 11 10 6 22 Piercing . | . . . . . . . . . . . . . . . . . . . . Sneak Attacks 19 | . 1 . . . . . . . 3 1 . 6 . . 6 . . . 2 Combat Hostiles . | . . . . . . . . . . . . . . . . . . . . Follow-up Attacks . | . . . . . . . . . . . . . . . . . . . . Damage Inflicted 14811 | 225 1420 425 2432 454 2194 2041 272 . 472 67 . 711 . . 3234 . 488 . 376 Guns 3884 | 225 1338 425 1557 229 72 38 . . . . . . . . . . . . . Cannons 5497 | . . . 875 225 2122 2003 272 . . . . . . . . . . . . Explosions 3188 | . . . . . . . . . . . . 45 . . 2655 . 488 . . Melee 2242 | . 82 . . . . . . . 472 67 . 666 . . 579 . . . 376 Ramming . | . . . . . . . . . . . . . . . . . . . . Kinetic 7076 | . 1200 425 1299 229 2093 1558 272 . . . . . . . . . . . . Thermal 2305 | 225 138 . 1133 225 101 483 . . . . . . . . . . . . . Explosive 3188 | . . . . . . . . . . . . 45 . . 2655 . 488 . . Electromagnetic . | . . . . . . . . . . . . . . . . . . . . Impact 82 | . 82 . . . . . . . . . . . . . . . . . . Slashing 2160 | . . . . . . . . . 472 67 . 666 . . 579 . . . 376 Piercing . | . . . . . . . . . . . . . . . . . . . . Highest Corruption 11 | . 3 3 . . . . . 11 2 4 . 1 . . 2 . 10 10 . Average Corruption 3 | . 2 3 . . . . . 7 1 2 . 1 . . 1 . 9 9 . Corruption Purged 10 | . . . . . . . . . 2 4 . 1 . . 2 . 1 . . Corruption Blocked . | . . . . . . . . . . . . . . . . . . . . Effects 27 | . 1 11 . . . . . . 3 5 . . . . 1 . 1 5 . Message Errors 5 | . . 2 . . . . . . . 2 . . . . . . . 1 . Matter Fused 10 | . 1 2 . . . . . . 2 1 . . . . 1 . 1 2 . Heat Flow Errors 2 | . . 2 . . . . . . . . . . . . . . . . . Energy Discharges 3 | . . 1 . . . . . . 1 1 . . . . . . . . . Data Loss (minor) 3 | . . 2 . . . . . . . . . . . . . . . 1 . Data Loss (major) 3 | . . 1 . . . . . . . 1 . . . . . . . 1 . Misfires 1 | . . 1 . . . . . . . . . . . . . . . . . Overload Shots . | . . . . . . . . . . . . . . . . . . . . Overflow Damage 718 | . 72 . . 1 52 21 . . 55 . . 115 . . 309 . 18 . 75 Projectiles 74 | . . . . 1 52 21 . . . . . . . . . . . . . Explosions 105 | . . . . . . . . . . . . . . . 87 . 18 . . Melee 539 | . 72 . . . . . . . 55 . . 115 . . 222 . . . 75 Knockbacks 55 | . . . . . 25 25 5 . . . . . . . . . . . . Impact . | . . . . . . . . . . . . . . . . . . . . Kinetic 52 | . . . . . 22 25 5 . . . . . . . . . . . . Secondary 3 | . . . . . 3 . . . . . . . . . . . . . . Self-Inflicted Damage . | . . . . . . . . . . . . . . . . . . . . Shots . | . . . . . . . . . . . . . . . . . . . . Rammed . | . . . . . . . . . . . . . . . . . . . . Targets Rammed . | . . . . . . . . . . . . . . . . . . . . Kicked . | . . . . . . . . . . . . . . . . . . . . Crushed . | . . . . . . . . . . . . . . . . . . . . Highest Temperature 396 | 195 180 224 301 222 396 349 132 . 10 199 264 137 222 . 242 . 110 130 36 Average Temperature 58 | 61 48 39 70 94 80 114 45 . 1 32 199 75 100 . 41 . 47 90 19 Received Heat Transfer 1834 | . 351 54 303 63 575 410 36 . 9 . . . . . 21 12 . . . Effects 4 | . . . . . 3 1 . . . . . . . . . . . . . Shutdowns 2 | . . . . . 1 1 . . . . . . . . . . . . . Interference 2 | . . . . . 2 . . . . . . . . . . . . . . Siege Activations . | . . . . . . . . . . . . . . . . . . . . Martial Activations . | . . . . . . . . . . . . . . . . . . . . Shielding Activations . | . . . . . . . . . . . . . . . . . . . . Robots Disrupted . | . . . . . . . . . . . . . . . . . . . . Combat Hostiles . | . . . . . . . . . . . . . . . . . . . . Robots Corrupted . | . . . . . . . . . . . . . . . . . . . . Combat Hostiles . | . . . . . . . . . . . . . . . . . . . . Parts Fried 2 | . 2 . . . . . . . . . . . . . . . . . . Impact Corruptions 1 | . 1 . . . . . . . . . . . . . . . . . . Robots Melted 1 | . . . 1 . . . . . . . . . . . . . . . . Combat Hostiles 1 | . . . 1 . . . . . . . . . . . . . . . . Parts Melted 13 | 4 3 . 3 2 . . . . . . . . . . . . . . 1 Heat Transferred 4516 | 740 481 . 1926 407 185 777 . . . . . . . . . . . . . Parts Sabotaged . | . . . . . . . . . . . . . . . . . . . . Parts Stolen . | . . . . . . . . . . . . . . . . . . . . Parts Stripped . | . . . . . . . . . . . . . . . . . . . . Power Chain Reactions . | . . . . . . . . . . . . . . . . . . . . Alert | -11 -10 -10 -9 -9 -8 -8 -8 -8 -6 -5 -5 -5 -4 -4 -4 -3 -2 -2 -1 ------- Run | Yrd Mat Min Mat Min Mat Sto Rec Scr Fac Fac Was Fac Fac Was Fac Res Res Tes Acc Maximum Alert Level 3 | . . . 2 . . . . . . . . . 1 . 3 1 1 1 1 Low Security (%) 82 | 100 100 100 59 100 100 100 100 . 100 100 100 100 97 100 6 . 90 35 28 Level 1 10 | . . . 36 . . . . . . . . . 2 . 16 100 9 64 71 Level 2 5 | . . . 3 . . . . . . . . . . . 62 . . . . Level 3 1 | . . . . . . . . . . . . . . . 14 . . . . Level 4 . | . . . . . . . . . . . . . . . . . . . . Level 5 . | . . . . . . . . . . . . . . . . . . . . High Security . | . . . . . . . . . . . . . . . . . . . . Max Security . | . . . . . . . . . . . . . . . . . . . . Peak Influence 754 | 10 184 96 408 193 168 115 59 . 32 24 . 75 218 76 754 362 323 268 342 Initial 360 | . . 43 12 153 4 39 18 . . . . . 32 76 4 360 177 175 148 Average 117 | 3 53 42 193 99 105 57 10 . 5 3 . 5 68 45 499 331 170 218 250 Influence Increases 7260 | 35 359 296 993 218 701 551 181 . 201 169 . 232 296 . 1960 25 346 152 545 Destroy 0b10 Robot/C 2920 | . 200 220 600 180 460 320 80 . . . . . . . 600 . 80 . 180 Destroy 0b10 Robot/NC 530 | 35 60 . 105 10 65 75 10 . 15 5 . 30 . . 95 . . . 25 Destroy Leader 648 | . 48 40 200 20 118 80 . . . . . . . . 112 . 10 . 20 Allied During Kill 521 | . . 6 21 8 9 . . . . . . . . . 457 . . . 20 Successful Hack 259 | . . . 12 . 30 . . . 56 52 . 28 . . 51 . 16 14 . Select Force Hacks 90 | . . . . . . . 90 . . . . . . . . . . . . Disable Machine 255 | . . . 30 . . 60 . . . . . . . . 150 . . . 15 Destroy Structure 852 | . 6 . 10 . 19 16 1 . 25 82 . 54 26 . 390 10 90 18 105 Partial Spotted 390 | . . . . . . . . . 45 15 . . 105 . 90 15 75 45 . Lose Combat Pursuer 795 | . 45 30 15 . . . . . 60 15 . 120 165 . 15 . 75 75 180 Influence Decreases 6925 | 35 246 377 631 599 620 598 217 11 201 169 . 165 145 212 1278 398 348 218 457 Entered New Map 1317 | . . 70 20 241 9 55 29 11 . . . . 35 142 2 328 138 138 99 Time Decay 4272 | 35 236 267 571 318 571 483 188 . 191 163 . 165 90 70 446 70 150 60 198 Lost Part 260 | . 10 20 . . 20 60 . . . . . . 20 . 20 . 30 20 60 Lost Ally 626 | . . 20 40 40 20 . . . 10 6 . . . . 360 . 30 . 100 Purge Threat 450 | . . . . . . . . . . . . . . . 450 . . . . Squads Dispatched 70 | . 2 . 6 . 2 . . . 10 9 . 9 2 . 15 2 5 1 7 Investigation 38 | . 1 . 3 . 1 . . . 6 5 . 7 1 . 8 2 1 . 3 Extermination 16 | . . . . . . . . . 3 4 . 1 1 . 2 . 2 1 2 Reinforcement 15 | . 1 . 3 . 1 . . . 1 . . 1 . . 4 . 2 . 2 Assault . | . . . . . . . . . . . . . . . . . . . . Garrison 1 | . . . . . . . . . . . . . . . 1 . . . . Intercept . | . . . . . . . . . . . . . . . . . . . . Searches Triggered . | . . . . . . . . . . . . . . . . . . . . Unchained Authorized 1 | . . . . . . . . . . . . . . . . . 1 . . Construction Impeded 2 | . . . . . . . . . . . . 1 . . 1 . . . . Haulers Reinforced 1 | . . . . . . . . . . . . . . . . . . . 1 Active Scanning Responses . | . . . . . . . . . . . . . . . . . . . . Cargo Convoy Interrupts . | . . . . . . . . . . . . . . . . . . . . Stealth | -11 -10 -10 -9 -9 -8 -8 -8 -8 -6 -5 -5 -5 -4 -4 -4 -3 -2 -2 -1 --------- Run | Yrd Mat Min Mat Min Mat Sto Rec Scr Fac Fac Was Fac Fac Was Fac Res Res Tes Acc Distress Signals 18 | . . . 1 . 1 1 . . 2 . . 4 . . 5 . 2 . 2 Communications Jammed . | . . . . . . . . . . . . . . . . . . . . Distress Signals . | . . . . . . . . . . . . . . . . . . . . Times Spotted 272 | . 21 12 40 10 28 22 4 . 16 4 1 12 10 . 37 6 16 8 25 Peak Tracking Total 13 | . 6 3 5 3 4 5 2 . 5 2 1 6 11 . 13 6 9 7 9 Tactical Retreats 21 | . 1 1 1 . . . . . 2 1 . 3 3 . 1 . 2 2 4 Traps | -11 -10 -10 -9 -9 -8 -8 -8 -8 -6 -5 -5 -5 -4 -4 -4 -3 -2 -2 -1 ------- Run | Yrd Mat Min Mat Min Mat Sto Rec Scr Fac Fac Was Fac Fac Was Fac Res Res Tes Acc Traps Triggered 19 | . 5 . 3 . 1 3 . . 3 2 . 1 1 . . . . . . Indirectly . | . . . . . . . . . . . . . . . . . . . . Trap Hack Attempts . | . . . . . . . . . . . . . . . . . . . . Triggered . | . . . . . . . . . . . . . . . . . . . . Disarmed . | . . . . . . . . . . . . . . . . . . . . Reprogrammed . | . . . . . . . . . . . . . . . . . . . . Reused . | . . . . . . . . . . . . . . . . . . . . Traps Extracted . | . . . . . . . . . . . . . . . . . . . . Installed . | . . . . . . . . . . . . . . . . . . . . Triggered . | . . . . . . . . . . . . . . . . . . . . Machines | -11 -10 -10 -9 -9 -8 -8 -8 -8 -6 -5 -5 -5 -4 -4 -4 -3 -2 -2 -1 ---------- Run | Yrd Mat Min Mat Min Mat Sto Rec Scr Fac Fac Was Fac Fac Was Fac Res Res Tes Acc Machines Disabled 17 | . . . 2 . . 4 . . . . . . . . 10 . . . 1 Max in Single Turn 2 | . . . 1 . . 1 . . . . . . . . 2 . . . . Garrison Access 8 | . . . . . 1 . . . 2 1 . 2 . . 1 . . 1 . Machines Repaired . | . . . . . . . . . . . . . . . . . . . . Machines Dismantled . | . . . . . . . . . . . . . . . . . . . . Machines Sabotaged . | . . . . . . . . . . . . . . . . . . . . Overloaded Fab Kills . | . . . . . . . . . . . . . . . . . . . . Hacking | -11 -10 -10 -9 -9 -8 -8 -8 -8 -6 -5 -5 -5 -4 -4 -4 -3 -2 -2 -1 --------- Run | Yrd Mat Min Mat Min Mat Sto Rec Scr Fac Fac Was Fac Fac Was Fac Res Res Tes Acc Machines Accessed 140 | . 3 . 8 1 9 10 4 8 25 15 . 16 3 . 19 4 5 2 8 Terminals 66 | . 1 . 5 . 5 9 1 . 11 7 . 7 1 . 10 2 2 1 4 Fabricators 9 | . . . . . . . . . 3 2 . 1 1 . 2 . . . . Repair Stations 10 | . . . 2 . 1 1 . . 3 1 . . . . 1 . 1 . . Recycling Units 29 | . 2 . . . 1 . 3 . 5 3 . 5 . . 4 2 1 . 3 Scanalyzers 8 | . . . 1 . 1 . . . 1 1 . . 1 . 1 . 1 . 1 Garrison Access 9 | . . . . . 1 . . . 2 1 . 3 . . 1 . . 1 . Total Hacks 392 | . 5 . 27 1 23 16 8 49 60 31 . 36 10 . 62 18 18 8 20 Successful 257 | . 3 . 14 1 13 9 6 49 33 18 . 21 8 . 40 9 14 4 15 Failed 134 | . 2 . 13 . 10 7 2 . 27 13 . 15 2 . 21 9 4 4 5 Catastrophic 25 | . 1 . 3 . 3 1 . . 10 2 . 1 . . 2 1 . . 1 Database Lockouts 1 | . . . . . . . . . . . . . . . 1 . . . . Manual 167 | . 2 . 16 . 11 7 6 . 32 13 . 18 3 . 28 11 11 1 8 Terminals 202 | . 2 . 16 . 11 14 5 . 30 16 . 23 3 . 36 15 13 6 12 Fabricators 29 | . . . . . . . . . 7 4 . 2 3 . 13 . . . . Repair Stations 28 | . . . 6 . 4 2 . . 8 2 . . . . 4 . 2 . . Recycling Units 40 | . 3 . . . 2 . 3 . 9 4 . 6 . . 6 3 1 . 3 Scanalyzers 29 | . . . 5 . 5 . . . 4 3 . . 4 . 1 . 2 . 5 Garrison Access 14 | . . . . . 1 . . . 2 2 . 5 . . 2 . . 2 . Terminal Hacks 119 | . . . 3 1 1 5 2 49 7 5 . 7 1 . 17 5 6 3 7 Record 48 | . . . . . . . . 48 . . . . . . . . . . . Part Schematic 5 | . . . 1 . . . . . . . . . . . 4 . . . . Robot Schematic 1 | . . . 1 . . . . . . . . . . . . . . . . Open Door 4 | . . . . 1 . 2 . . . . . . . . . . . . 1 Level Access Points 7 | . . . . . . . . . 1 1 . 1 . . 1 1 . 1 1 Branch Access Points 5 | . . . 1 . 1 . . . . . . . . . 1 . 1 1 . Machine Index 4 | . . . . . . . . . . 1 . 1 . . 1 . . 1 . Terminal Index 8 | . . . . . . 1 1 . 1 . . 1 . . 1 1 1 . 1 Fabricator Index 3 | . . . . . . . . . 1 . . . . . 1 . 1 . . Repair Station Index 1 | . . . . . . . . . . . . . . . . . 1 . . Recycling Unit Index 2 | . . . . . . . 1 . . . . . . . . . 1 . . Alert Level 4 | . . . . . . . . . . . . 1 . . 1 1 1 . . Unreport Threat 3 | . . . . . . . . . . . . . . . 3 . . . . Locate Traps 10 | . . . . . . 2 . . 3 2 . . . . 1 . . . 2 Recall Investigation 1 | . . . . . . . . . . . . 1 . . . . . . . Recall Extermination 2 | . . . . . . . . . . 1 . 1 . . . . . . . Registered Components 2 | . . . . . . . . . . . . 1 . . . 1 . . . Zone Layout 8 | . . . . . . . . . 1 . . . 1 . 3 1 . . 2 Proto ID Catalog 1 | . . . . . . . . 1 . . . . . . . . . . . Fabricator Hacks 21 | . . . . . . . . . 5 3 . 2 1 . 10 . . . . Load Schematic 12 | . . . . . . . . . 3 2 . 1 1 . 5 . . . . Build 9 | . . . . . . . . . 2 1 . 1 . . 5 . . . . Repair Station Hacks 24 | . . . 3 . 4 2 . . 7 2 . . . . 4 . 2 . . Scan Component 13 | . . . 2 . 2 1 . . 4 1 . . . . 2 . 1 . . Repair 11 | . . . 1 . 2 1 . . 3 1 . . . . 2 . 1 . . Recycling Unit Hacks 5 | . 3 . . . 1 . . . 1 . . . . . . . . . . Report Inventory 4 | . 2 . . . 1 . . . 1 . . . . . . . . . . Retrieve Components 1 | . 1 . . . . . . . . . . . . . . . . . . Scanalyzer 26 | . . . 5 . 4 . . . 4 2 . . 4 . . . 2 . 5 Insert Component 5 | . . . 1 . 1 . . . 1 1 . . 1 . . . . . . Analyze 7 | . . . 1 . 1 . . . 1 1 . . 3 . . . . . . Retrieve Study 14 | . . . 3 . 2 . . . 2 . . . . . . . 2 . 5 Garrison Access Hacks 8 | . . . . . 1 . . . 2 1 . 2 . . 1 . . 1 . Seal Access 8 | . . . . . 1 . . . 2 1 . 2 . . 1 . . 1 . Unauthorized Hacks 54 | . . . 3 . 2 2 4 . 7 5 . 10 2 . 8 4 4 . 3 Terminals 26 | . . . 3 . 2 2 1 . 3 1 . 5 1 . 3 2 3 . . Assimilate 8 | . . . . . . . . . 1 . . 3 1 . 2 . 1 . . Botnet 18 | . . . 3 . 2 2 1 . 2 1 . 2 . . 1 2 2 . . Fabricators 4 | . . . . . . . . . 1 1 . . 1 . 1 . . . . Recompile 4 | . . . . . . . . . 1 1 . . 1 . 1 . . . . Repair Stations . | . . . . . . . . . . . . . . . . . . . . Recycling Units 24 | . . . . . . . 3 . 3 3 . 5 . . 4 2 1 . 3 Tunnel 3 | . . . . . . . 3 . . . . . . . . . . . . Fedlink 18 | . . . . . . . . . 3 3 . 5 . . 4 2 1 . . Scrapoids 1 | . . . . . . . . . . . . . . . . . . . 1 Scraphulk 2 | . . . . . . . . . . . . . . . . . . . 2 Scanalyzers . | . . . . . . . . . . . . . . . . . . . . Garrison Access . | . . . . . . . . . . . . . . . . . . . . Data Cores Recovered 1 | . 1 . . . . . . . . . . . . . . . . . . Used . | . . . . . . . . . . . . . . . . . . . . Hacking Detections 79 | . 2 . 7 . 6 8 . . 14 9 . 9 2 . 12 3 2 2 3 Full Trace Events 8 | . . . 1 . 1 . . . 2 . . 1 . . 3 . . . . Feedback Events 1 | . . . . . . . . . . . . . . . 1 . . . . Hackware Fried 1 | . . . . . . . . . . . . . . . 1 . . . . Feedback Blocked . | . . . . . . . . . . . . . . . . . . . . Robot Schematics Acquired 1 | . . . 1 . . . . . . . . . . . . . . . . Robots Built 3 | . . . . . . . . . 2 . . . . . 1 . . . . Authchips 3 | . . . . . . . . . 2 . . . . . 1 . . . . Time 107 | . . . . . . . . . 80 . . . . . 27 . . . . Total Robot Build Rating 3 | . . . . . . . . . 2 . . . . . 1 . . . . Part Schematics Acquired 10 | . . . 2 . 1 . . . 1 1 . . 1 . 4 . . . . Parts Built 7 | . . . . . . . . . . 1 . 1 . . 5 . . . . Authchips 4 | . . . . . . . . . . 1 . 1 . . 2 . . . . Time 365 | . . . . . . . . . . 84 . 84 . . 197 . . . . Total Part Build Rating 49 | . . . . . . . . . . 6 . 6 . . 37 . . . . Part Studies Acquired 14 | . . . 3 . 2 . . . 2 . . . . . . . 2 . 5 Parts Repaired 11 | . . . 1 . 2 1 . . 3 1 . . . . 2 . 1 . . Time 430 | . . . 38 . 76 38 . . 119 28 . . . . 81 . 50 . . Parts Recycled . | . . . . . . . . . . . . . . . . . . . . Recycled Matter . | . . . . . . . . . . . . . . . . . . . . Retrieved Matter . | . . . . . . . . . . . . . . . . . . . . Retrieved Components 10 | . 10 . . . . . . . . . . . . . . . . . . Parts Scanalyzed 5 | . . . 1 . 1 . . . 1 1 . . 1 . . . . . . Part Schematics Acquired 5 | . . . 1 . 1 . . . 1 1 . . 1 . . . . . . Parts Damaged 1 | . . . . . . . . . 1 . . . . . . . . . . Bothacking | -11 -10 -10 -9 -9 -8 -8 -8 -8 -6 -5 -5 -5 -4 -4 -4 -3 -2 -2 -1 ------------ Run | Yrd Mat Min Mat Min Mat Sto Rec Scr Fac Fac Was Fac Fac Was Fac Res Res Tes Acc Used RIF Installer . | . . . . . . . . . . . . . . . . . . . . Robots Hacked . | . . . . . . . . . . . . . . . . . . . . Non-combat . | . . . . . . . . . . . . . . . . . . . . Combat . | . . . . . . . . . . . . . . . . . . . . Robot Hacks Applied . | . . . . . . . . . . . . . . . . . . . . Relay Couplers Released . | . . . . . . . . . . . . . . . . . . . . Fabnet Peak Effective % . | . . . . . . . . . . . . . . . . . . . . Robots Rewired . | . . . . . . . . . . . . . . . . . . . . Allies Hacked 2 | . . . . . . . . . . . . . . . . . . . 2 Hacks Repelled . | . . . . . . . . . . . . . . . . . . . . Allies | -11 -10 -10 -9 -9 -8 -8 -8 -8 -6 -5 -5 -5 -4 -4 -4 -3 -2 -2 -1 -------- Run | Yrd Mat Min Mat Min Mat Sto Rec Scr Fac Fac Was Fac Fac Was Fac Res Res Tes Acc Total Allies 43 | . . 4 . 3 . . . . 3 . . 2 1 20 2 . 1 . 7 Largest Group 20 | . . 3 3 2 1 . . . 1 1 . 2 1 20 20 . 1 . 5 Highest-Rated Group 849 | . . 55 55 49 31 . . . 10 10 . 52 26 849 849 . 26 . 395 Highest-Rated Ally 139 | . . 31 31 31 31 . . . 10 10 . 26 26 46 46 . 26 . 139 Total Orders 7 | . . . . . . . . . . . . 4 . . . . 3 . . STAY 3 | . . . . . . . . . . . . 3 . . . . . . . ROAM 3 | . . . . . . . . . . . . . . . . . 3 . . FOLLOW 1 | . . . . . . . . . . . . 1 . . . . . . . Ally Attacks 283 | . . 7 27 7 21 . . . . . . . . . 165 . . . 56 Total Damage 6813 | . . 35 295 125 292 . . . . . . . . . 3833 . . . 2233 Kills 48 | . . 1 3 1 6 . . . . . . . . . 26 . . . 11 Allies Corrupted 1 | . . . . . . . . . . . . . . . 1 . . . . Allies Melted . | . . . . . . . . . . . . . . . . . . . . Intel | -11 -10 -10 -9 -9 -8 -8 -8 -8 -6 -5 -5 -5 -4 -4 -4 -3 -2 -2 -1 ------- Run | Yrd Mat Min Mat Min Mat Sto Rec Scr Fac Fac Was Fac Fac Was Fac Res Res Tes Acc Active Infowar (turns) 7638 | 90 80 . 640 . . . 5 1789 1110 772 11 720 180 140 1106 159 312 128 396 Optics 1256 | . . . . . . . . . . . . . . 140 1106 10 . . . Sensors 4935 | . . . . . . . . . 1080 767 11 718 180 140 1094 159 262 128 396 Structural 5149 | . 5 . 640 . . . 5 1789 30 498 . 612 94 . 641 159 285 . 391 Seismic 166 | 90 75 . . . . . . . . . . 1 . . . . . . . T.N.C. 3 | . . . 3 . . . . . . . . . . . . . . . . ECM 2 | . . . . . . . . . . . . . . . . . 2 . . Robot Analysis Total . | . . . . . . . . . . . . . . . . . . . . Derelict Logs Recovered . | . . . . . . . . . . . . . . . . . . . . Drone Launches 3 | . . . . . . . . . . . . . . . . . 3 . . Drone Recoveries . | . . . . . . . . . . . . . . . . . . . . Exploration | -11 -10 -10 -9 -9 -8 -8 -8 -8 -6 -5 -5 -5 -4 -4 -4 -3 -2 -2 -1 ------------- Run | Yrd Mat Min Mat Min Mat Sto Rec Scr Fac Fac Was Fac Fac Was Fac Res Res Tes Acc Turns Passed 15716 | 121 1276 651 1925 702 1776 1306 1070 1789 1163 772 11 720 180 140 1106 159 312 128 409 Spaces Moved 19443 | 70 1009 548 1157 519 1152 626 630 1490 2422 2162 65 1860 508 262 2771 265 660 359 908 Core 10 | 4 . . . . . . . . . . . . . . . . . . 6 Treads . | . . . . . . . . . . . . . . . . . . . . Legs . | . . . . . . . . . . . . . . . . . . . . Wheels 7202 | 66 1009 548 1157 519 1152 626 630 1490 5 . . . . . . . . . . Hover . | . . . . . . . . . . . . . . . . . . . . Flight 12231 | . . . . . . . . . 2417 2162 65 1860 508 262 2771 265 660 359 902 Fastest Speed 5 | 50 90 95 95 115 115 130 115 100 23 6 6 7 5 20 5 5 5 6 5 Average Speed 56 | 88 94 95 111 115 122 146 158 114 23 19 13 19 18 20 19 19 19 15 25 Slowest Speed 200 | 150 95 95 125 115 145 160 160 120 115 20 20 20 20 20 20 20 96 19 200 Overloaded Moves 358 | . . . . . . . . . . 10 32 11 63 . 41 10 86 51 54 Propulsion Burnouts . | . . . . . . . . . . . . . . . . . . . . Robots Hopped 28 | . . . . . . . . . 8 3 . 2 3 . 3 1 2 1 5 Potential Cave-ins 22 | . . . . . . . . . . . . . 3 . 16 . 3 . . Cave-ins Triggered 2 | . . . . . . . . . . . . . . . 1 . 1 . . Exploration Rate (%) 58 | 4 99 91 81 76 68 75 98 90 50 50 69 48 17 89 53 10 21 67 18 Regions Visited 19 Branch Regions 6 Pre-discovered Areas 6 | . . . . . . . 3 2 1 . . . . . . . . . . Known Exits Taken 8 | . . . 1 . 1 . . . 1 . . 1 . . 1 1 1 1 . Unknown Exits Taken 7 | 1 1 1 . 1 . 1 1 1 . . . . . . . . . . . Scrap Searched 8 | . . 1 . 1 . . . 6 . . . . . . . . . . . Spaces Dug 284 | . 4 . . . 1 . . . 25 41 . 21 35 . 122 5 9 6 15 Terrain Destroyed 557 | . 4 . . . 13 14 1 . 25 41 . 30 35 . 326 5 42 6 15 Melee 148 | . 4 . . . . . . . 25 41 . 21 2 . 20 5 9 6 15 Projectile 28 | . . . . . 13 14 1 . . . . . . . . . . . . AOE 381 | . . . . . . . . . . . . 9 33 . 306 . 33 . . Terrain Rammed . | . . . . . . . . . . . . . . . . . . . . Walls Destroyed . | . . . . . . . . . . . . . . . . . . . . Machines Disabled . | . . . . . . . . . . . . . . . . . . . . Actions | -11 -10 -10 -9 -9 -8 -8 -8 -8 -6 -5 -5 -5 -4 -4 -4 -3 -2 -2 -1 --------- Run | Yrd Mat Min Mat Min Mat Sto Rec Scr Fac Fac Was Fac Fac Was Fac Res Res Tes Acc Total 23134 | 99 1202 641 1628 592 1407 891 685 1570 2941 2447 66 2150 585 349 3243 353 821 421 1043 Wait 2358 | . 49 45 277 41 101 97 26 57 414 199 2 226 70 84 344 75 125 46 80 Move 19368 | 69 1008 547 1156 518 1151 625 629 1489 2405 2156 64 1855 502 261 2763 262 654 356 898 Hop 27 | . . . . . . . . . 8 3 . 2 3 . 3 1 2 1 4 Pick Up 239 | 8 22 10 33 4 27 24 8 8 16 16 . 9 2 2 25 1 7 3 14 Fast Attach 22 | 7 1 1 1 . 2 3 . . 1 2 . 2 . . 1 . 1 . . Attach 77 | . 2 2 5 . 8 10 . . 8 6 . 2 2 1 9 2 6 3 11 Detach 8 | . . . . . 2 1 . . . 1 . . . . 2 . . 2 . Swap 176 | 1 22 3 35 5 21 13 6 9 23 8 . 9 . . 8 1 5 2 5 Drop 205 | 1 22 7 34 7 29 21 7 7 15 14 . 7 . 1 19 . 5 2 7 Fire 410 | 13 71 26 87 17 66 73 9 . . . . 3 4 . 36 . 5 . . Melee 201 | . 5 . . . . . . . 36 42 . 35 2 . 32 11 10 6 22 Ram . | . . . . . . . . . . . . . . . . . . . . Kick . | . . . . . . . . . . . . . . . . . . . . Crush . | . . . . . . . . . . . . . . . . . . . . Escape Stasis 41 | . . . . . . 24 . . 15 . . . . . 1 . 1 . . Rewire 2 | . . . . . . . . . . . . . . . . . . . 2 Trap . | . . . . . . . . . . . . . . . . . . . . Miscellaneous . | . . . . . . . . . . . . . . . . . . . . Route ------- -11/Scrapyard -10/Materials (discovered 6 exits: *Mat x3 / [*Min x2] / [*Sub]) -10/Mines (discovered 3 exits: *Mat x2 / [*Sub]) -9/Materials (discovered 3 exits: *Mat x2 / *Min) -9/Mines (discovered 3 exits: *Mat x2 / [*Exi]) -8/Materials (discovered 4 exits: [*Fac x2] / *Sto x2) -8/Storage (discovered 2 exits: [*Fac] / *Rec) -8/Recycling -8/Scraptown (discovered 2 exits: *Fac x2) -6/Factory (discovered 5 exits: *Fac x4 / *Low) -5/Factory (discovered 4 exits: *Fac x4) -5/Waste -5/Factory (discovered 4 exits: *Fac x4) -4/Factory -4/Waste -4/Factory (discovered 9 exits: *Res x4 / *Upp x2 / *Ext x2 / Arm) -3/Research (discovered 3 exits: *Res x3) -2/Research (discovered 2 exits: *Tes x2) -2/Testing -1/Access To Epsilon Eridani History --------- Turn | Location | Event 15 | -11/Scrapyard | Discovered new exit (range 15) 122 | -11/Scrapyard | Entered Materials 123 | -10/Materials | Met a group of wandering Federalists 265 | -10/Materials | Discovered new exit (range 3) 313 | -10/Materials | Build established: Mutant 588 | -10/Materials | Discovered new exit (range 11) 615 | -10/Materials | Discovered new exit (range 6) 944 | -10/Materials | Core integrity fell below 50% 972 | -10/Materials | Discovered new exit (range 6) 1062 | -10/Materials | Discovered new exit (range 4) 1105 | -10/Materials | Discovered new exit (range 12) 1398 | -10/Materials | Entered Mines 1484 | -10/Mines | Met a Derelict bent on vengeance 1545 | -10/Mines | Discovered new exit (range 6) 1795 | -10/Mines | A weapon hastily lodged in a ceiling crevice suddenly fell to the ground 1860 | -10/Mines | Assisted by bots powering up and referring to "LRC-V3" 1953 | -10/Mines | Discovered new exit (range 9) 2030 | -10/Mines | Discovered new exit (range 6) 2034 | -10/Mines | Received a Mining Laser from a helpful Derelict 2049 | -10/Mines | Entered Materials 2049 | -9/Materials | Accompanied by 3 allies 2049 | -9/Materials | Evolved 2 slots: Utility x2 2411 | -9/Materials | Discovered new exit (range 12) 2534 | -9/Materials | Discovered new exit (range 10) 3176 | -9/Materials | Discovered new exit (range 4) 3432 | -9/Materials | Repaired Reactive Plating 3841 | -9/Materials | Identified exit to Mines 3974 | -9/Materials | Entered Mines 3981 | -9/Mines | Found the Drone Emporium 3989 | -9/Mines | Found Prototype Device 4056 | -9/Mines | Escorted by a lone wolf Derelict 4057 | -9/Mines | Discovered new exit (range 7) 4325 | -9/Mines | Assembled infested the area 4432 | -9/Mines | Met 8R-AWN 4561 | -9/Mines | Discovered new exit (range 5) 4584 | -9/Mines | Discovered new exit (range 8) 4676 | -9/Mines | Entered Materials 4676 | -8/Materials | Accompanied by 1 ally 4676 | -8/Materials | Evolved 2 slots: Utility x2 4678 | -8/Materials | Identified Bomb Drone Bay 4681 | -8/Materials | Led the pair of lost Derelicts to an unsafe place 4968 | -8/Materials | Discovered new exit (range 6) 5006 | -8/Materials | Discovered new exit (range 4) 5257 | -8/Materials | Discovered new exit (range 16) 5879 | -8/Materials | Identified exit to Storage 6245 | -8/Materials | Repaired Mni. Grenade Launcher+? 6318 | -8/Materials | Repaired Mak. System Shield 6452 | -8/Materials | Entered Storage 6595 | -8/Storage | Lost 6 parts (1p2n1u2w) 6990 | -8/Storage | Repaired Assault Cannon+ 7135 | -8/Storage | Discovered new exit (range 16) 7607 | -8/Storage | Used back door to open Recycling access 7607 | -8/Storage | Discovered new exit (range 5) 7758 | -8/Storage | Entered Recycling 7864 | -8/Recycling | Scanned before Scraplab entrance 8810 | -8/Recycling | Entered Scraplab 8821 | -8/Recycling | Discovered new exit (range 3) 8828 | -8/Recycling | Entered Scraptown 8832 | -8/Scraptown | System corruption reached 10% 8833 | -8/Scraptown | System corruption cleaned by C-Scrubber 9027 | -8/Scraptown | Discovered new exit (range 7) 9104 | -8/Scraptown | Visited Comm Corps 9118 | -8/Scraptown | Build established: Scavenger-Mutant 9167 | -8/Scraptown | Visited SPCMW 9201 | -8/Scraptown | Visited Cyclists 9414 | -8/Scraptown | Visited Assassins FH 9451 | -8/Scraptown | Visited Spacefarers 9530 | -8/Scraptown | Visited UFD Registry 9530 | -8/Scraptown | Registered with UFD as "Boltgrid" 9573 | -8/Scraptown | Entered Cyclist Reading Room 9581 | -8/Scraptown | Learned location of Zion (-7) 9633 | -8/Scraptown | Visited Shadow of the Wyrm 9777 | -8/Scraptown | Visited Junk Repository 9832 | -8/Scraptown | Visited LU-1G1's Boring Crew 9869 | -8/Scraptown | Visited Junk Repository 10068 | -8/Scraptown | Visited Curators Association 10095 | -8/Scraptown | Visited Scrap Suit Storage 10135 | -8/Scraptown | Visited Derelict Rescue Squad 10143 | -8/Scraptown | Found DRS Beacon 10173 | -8/Scraptown | Visited Chapter 10 10208 | -8/Scraptown | Visited DA-N13 Charitable Foundation 10221 | -8/Scraptown | Found DCF Scrap (30 items) 10349 | -8/Scraptown | Visited Science Guys 10480 | -8/Scraptown | Met Optimus 10480 | -8/Scraptown | Accepted into 0bPrime 10613 | -8/Scraptown | Discovered new exit (range 5) 10617 | -8/Scraptown | Entered Factory 10617 | -6/Factory | Evolved 4 slots: Propulsion x3, Utility x1 10887 | -6/Factory | Repaired Imp. System Shield 11078 | -6/Factory | Fabricated O-16 Technician? 11099 | -6/Factory | Loaded intel: 8 recycling unit locations 11133 | -6/Factory | Learned location of Protoforge (-3) 11209 | -6/Factory | Repaired Broken Cesium-ion Thruster+ 11314 | -6/Factory | Build established: Hacker-Sprinter 11433 | -6/Factory | Identified exit to Factory 11445 | -6/Factory | Discovered new exit (range 10) 11446 | -6/Factory | Identified exit to Lower Caves 11472 | -6/Factory | Repaired Mni. Grenade Launcher+ 11720 | -6/Factory | Spotted B-75 Beast 11748 | -6/Factory | Fabricated O-16 Technician (x1) 11780 | -6/Factory | Entered another Factory area 11780 | -5/Factory | Accompanied by 1 ally 11780 | -5/Factory | Evolved 2 slots: Propulsion x2 11807 | -5/Factory | Identified exit to Factory 11854 | -5/Factory | Repaired Adv. Cooling System 11884 | -5/Factory | Loaded intel: 8 recycling unit locations 12104 | -5/Factory | Build established: Hacker-Scout 12362 | -5/Factory | Fabricated Cld. Nuclear Pulse Thruster (x1) 12431 | -5/Factory | Spotted B-75 Beast 12552 | -5/Factory | Manually triggered Chute Trap 12552 | -5/Factory | Sucked down chute 12552 | -5/Factory | Entered Waste 12554 | -5/Waste | Spotted C-40 Crusher 12557 | -5/Waste | Spotted C-40 Crusher 12557 | -5/Waste | Spotted C-40 Crusher 12557 | -5/Waste | Spotted C-40 Crusher 12562 | -5/Waste | Discovered new exit (range 16) 12563 | -5/Waste | Identified exit to Factory 12563 | -5/Waste | Entered Factory 12573 | -5/Factory | Build established: Hacker-Sprinter 12764 | -5/Factory | Fabricated Cld. Nuclear Pulse Thruster (x1) 12912 | -5/Factory | Loaded intel: 8 recycling unit locations 13011 | -5/Factory | Noticed UFD Elites at a Recycling Unit 13039 | -5/Factory | Build established: Hacker-Scout 13283 | -5/Factory | Entered another Factory area 13283 | -4/Factory | Evolved 2 slots: Utility x2 13454 | -4/Factory | Spotted B-86 Titan 13463 | -4/Factory | Sucked down chute 13463 | -4/Factory | Entered Waste 13464 | -4/Waste | Joined by Warlord forces that had cleared the area 13536 | -4/Waste | Discovered new exit (range 12) 13551 | -4/Waste | Identified exit to Factory 13603 | -4/Waste | Entered Factory 13603 | -4/Factory | Accompanied by 20 allies 13611 | -4/Factory | Loaded intel: 8 recycling unit locations 13656 | -4/Factory | Fabricated Lgt. Quantum Reactor (x2) 13666 | -4/Factory | Identified exit to Research 13688 | -4/Factory | Lost 6 allies 13714 | -4/Factory | Fabricated Cld. Nuclear Pulse Thruster (x1) 13757 | -4/Factory | Build established: Wizard-Scout 13765 | -4/Factory | Garrison activated, responded to threat 13801 | -4/Factory | Fabricated Field Propulsion Array (x1) 13820 | -4/Factory | Lost 5 allies 13841 | -4/Factory | Fabricated O-16 Technician? 13928 | -4/Factory | Fabricated Mni. Smartbomb Launcher (x1) 13942 | -4/Factory | Identified exit to Upper Caves 13942 | -4/Factory | Identified exit to Extension 13942 | -4/Factory | Identified exit to Armory 13985 | -4/Factory | Repaired Adv. Phase Shifter 14074 | -4/Factory | Imp. System Shield fried by hacking feedback 14122 | -4/Factory | Spotted B-86 Titan 14172 | -4/Factory | Central database locked down 14194 | -4/Factory | Crushed by falling debris 14347 | -4/Factory | Repaired Mni. Smartbomb Launcher? 14373 | -4/Factory | Found Launcher Loader 14659 | -4/Factory | Build established: Hacker-Scout 14670 | -4/Factory | Spotted B-86 Titan 14709 | -4/Factory | Entered Research 14709 | -3/Research | Evolved 2 slots: Utility x2 14720 | -3/Research | Identified exit to Research 14732 | -3/Research | Loaded intel: 5 recycling unit locations 14851 | -3/Research | Spotted B-86 Titan 14868 | -3/Research | Entered another Research area 14868 | -2/Research | Evolved 2 slots: Utility x2 14945 | -2/Research | Loaded intel: 5 recycling unit locations 15001 | -2/Research | Build established: Wizard-Scout 15006 | -2/Research | Spotted B-90 Cyclops 15034 | -2/Research | Identified exit to Testing 15098 | -2/Research | Repaired Adv. Sensor Array 15100 | -2/Research | P-80 Master assimilated allied Administrator 9a 15143 | -2/Research | Unchained authorized (QV-33N) 15153 | -2/Research | Crushed by falling debris 15160 | -2/Research | Lost 3 allies 15165 | -2/Research | System corruption reached 10% 15180 | -2/Research | Entered Testing 15212 | -2/Testing | Lost 4 parts (1n3u) 15214 | -2/Testing | Identified exit to Access 15219 | -2/Testing | Spotted PH-XI5ZL59OIL 15308 | -2/Testing | Entered Access 15308 | -1/Access | Evolved 2 slots: Utility x2 15421 | -1/Access | Scraphulk reinforcements arrived? 15456 | -1/Access | Lost 6 parts (1p4n1u) 15616 | -1/Access | Identified exit to Surface 15617 | -1/Access | Scrapoids reinforcements arrived? 15648 | -1/Access | Scraphulk reinforcements arrived? 15717 | *** | Escaped! Last Messages --------------- 15691_ P-80 Master fails to hack 01A02-K. 15691_ Slug penetrates 01A02-K. 15691_ P-80 Master fails to hack 01A02-K. 15693_ Destroyed Adv. Heat Sink. 15694_ U-05 Engineer builds a Wall. 15694_ Slug penetrates 01A02-K. 15695_ P-80 Master destroyed. 15697_ Slug penetrates 01A02-K. 15698_ P-80 Master hacks 01A02-K, rebooting. 15699_ Reactivated 01A02-K. 15700_ P-80 Master fails to hack 01A02-K. 15700_ Slug penetrates 01A02-K. 15704_ P-80 Master fails to hack 01A02-K. 15707_ Slug penetrates 01A02-K. 15712_ 01A02-K shuts down. 15715_ Connecting with Terminal... >>Open(Door) Sealed Barrier opened. 15716_ The Access Shell folds into the floor. [Achievement: 20k Club] Map ----- +----------------------------------------------------+ | ?????????????????????????????????????????????????? | | ?????????????????????????????????????????????????? | | ?????????????????????????????????????????????????? | | ?????????????????????????????????????????????????? | | ?????????????????????????????????????????????????? | | ?????????????????????????????????????????????????? | | ?????????????????????????????????????????????????? | | ?????????????????????????????????????????????????? | | ?????????????????????????????????????????????????? | | ?????????????????????????????????????????????????? | | ?????????????????????????????????????????????????? | | ?????????????????????????????????????????????????? | | ?????????????????????????????????????????????????? | | ####?????????????????????????????????????????????? | | ####?????????????????BB????BB????????????????????? | | ##?????????????????BB????BB????????????????????? | | ##?????????????????????????????????????????????? | | ##?????????????????????????????????????????????? | | ##?????????????????????????????????????????????? | | ##??????????????##"????????"##?????????????????? | | ##??????????????##""""""""""##?????????????????? | | ##???##########?## ##?????????????????? | | ##???##########?## ##?????????????????? | | ##???## ##?## ##?????????????????? | | ##???## ##?## "" ##?????????????????? | | ####### ##?## "@ ##?????????????????? | | ""##### ##?## ##?????????????????? | | #!" ## ##?## ##?????????????????? | | $%! ! ## ##### ###????????????????? | | =% ! "" ##### ###????????????????? | | ###%! "" #### ##????????????????? | | #### ### ! ! #####"" ###????????????????? | | ?### ### #####"" ###????????????????? | | ??## ### ##?##"" ##?????????????????? | | ??## ### ##?##T ##?????????????????? | | ??## ### g ##?##"" ##?????????????????? | | ??## ### #####"" ##?????????????????? | | ??## ########+#####"" ##?????????????????? | | ??## kAR ???????????? | | ??## g k ???????????? | | ??## #########################???????????? | | ??## "#########################???????????? | | ??## ""????????????????????????????????????? | | ??## "?????????????????????????????????????? | | ??## "?????????????????????????????????????? | | ??## ???????????????????????????????????????? | | ??## ????????????????????????????????????????? | | ??## ????????????????????????????????????????? | | ??## ??????????????????????????????????????????? | | ??## ???????????????????????????????????????????? | +----------------------------------------------------+ Best States ------------- Heat Dissipation 52 Energy Generation 32 Energy Capacity 350 Matter Stores 300 Matter Capacity 300 Sight Range 22 Robot Scan Range 16 Terrain Scan Density 10 Power Amplification 30 Additional Mass Support 9 Base Temperature (-) 200 Armor Coverage 450 Resistance: KI 20 Resistance: TH 15 Evasion (%) 80 Targeting Accuracy 18 Core Analysis 6 Recoil Reduction 4 Offensive Hacking 66 Defensive Hacking 42 Authchip Count 7 Item Schematics ----------------- Hacking Suite | -9/Materials | Scanalyzed Mni. Grenade Launcher | -9/Materials | Hacked Mak. System Shield | -8/Materials | Scanalyzed Cesium-ion Thruster | -6/Factory | Scanalyzed Cld. Nuclear Pulse Thruster | -5/Factory | Scanalyzed Adv. System Restoration Module | -4/Factory | Scanalyzed Field Propulsion Array | -4/Factory | Hacked Mni. Smartbomb Launcher | -4/Factory | Hacked Med. Storage Unit | -4/Factory | Hacked Adv. Cryofiber Web | -4/Factory | Hacked Robot Schematics ------------------ O-16 Technician | -9/Materials | Hacked Fabricated ------------ O-16 Technician | x1 | -6/Factory | Authchip O-16 Technician | x1 | -6/Factory | Authchip Cld. Nuclear Pulse Thruster | x1 | -5/Factory | Authchip Cld. Nuclear Pulse Thruster | x1 | -5/Factory | Authchip Lgt. Quantum Reactor | x2 | -4/Factory | Preloaded Cld. Nuclear Pulse Thruster | x1 | -4/Factory | Authchip Field Propulsion Array | x1 | -4/Factory | Authchip O-16 Technician | x1 | -4/Factory | Authchip Mni. Smartbomb Launcher | x1 | -4/Factory Repaired ---------- Reactive Plating | 29% | -9/Materials Mni. Grenade Launcher | 44% | -8/Materials Mak. System Shield | 60% | -8/Materials Assault Cannon | 44% | -8/Storage Imp. System Shield | 50% | -6/Factory Cesium-ion Thruster | 99% | -6/Factory | Broken Mni. Grenade Launcher | 54% | -6/Factory Adv. Cooling System | 35% | -5/Factory Adv. Phase Shifter | 66% | -4/Factory Mni. Smartbomb Launcher | 21% | -4/Factory Adv. Sensor Array | 4% | -2/Research Studied --------- Wheel | -9/Materials | Hacked Flight Unit | -9/Materials | Hacked VTOL Module | -9/Materials | Hacked Assault Cannon | -8/Materials | Hacked Mni. Grenade Launcher | -8/Materials | Hacked Lgt. Fission Core | -6/Factory | Hacked Cesium-ion Thruster | -6/Factory | Hacked Lgt. Quantum Reactor | -2/Research | Hacked Field Propulsion Array | -2/Research | Hacked Mic. Fission Core | -1/Access | Hacked Impulse Thruster Array | -1/Access | Hacked Adv. Surge Thruster | -1/Access | Hacked Nuclear Pulse Array | -1/Access | Hacked Xenon Bombardment Thruster | -1/Access | Hacked Alien Tech Used ----------------- None Achievements -------------- 20k Club Below Bob, First Of His Name Fancy Inventory Hulk Smash Link The Feds My Command Is Your Wish UFD MVP We Are Legion Wheee! Challenges ------------ None Game ------ Seed EncryptedMetaArticulator Manual? 0 Play Time 08:06:57 Cumulative 91.8 hours Start 2026.01.07 @ 15:39:43 End 2026.01.08 @ 02:12:50 Sessions 1 Manual Loads 0 Difficulty Rogue Special Mode None Game No. 32 Rogue 32 Adventurer 0 Explorer 0 Win Type 0 Total 4 Types 3/0/1/0/0/0/0/0/0/0 Lore% 24 Gallery% 29 Achievement% 31 Wizard Run 0 Options --------- Layout 1 ASCII 0 Keyboard 0 Movement Mouse Keybinds 0 Fullscreen 1 Font 24/Smallcaps Map View 50x35 Zoom Use 0% Tactical HUD 1 Map Filters NONE Filters NONE Steam 1 RUN: b825a3af-27fb-45ee-8316-8a6825bf4049